fUST/lending_fUST_20250921
["ID","MTS","AMOUNT","RATE_DAILY","PERIOD"]
[386618062,1758433850995,-480.0,0.00020705,2]
[386618063,1758433851005,-480.0,0.00020705,2]
[386618064,1758433851015,-480.0,0.00020705,2]
[386618065,1758433851024,-954.7,0.00020705,2]
[386618066,1758433851033,-480.0,0.00020705,2]
[386618067,1758433851044,-564.55785114,0.00020705,2]
[386618068,1758433851053,-480.0,0.00020705,2]
[386618069,1758433851062,-579.76,0.00020705,2]
[386618070,1758433851071,-480.0,0.00020705,2]
[386618071,1758433851080,-480.0,0.00020705,2]
[386618072,1758433851090,-480.0,0.00020705,2]
[386618073,1758433851099,-829.79,0.00020705,2]
[386618074,1758433851108,-179.75415021,0.00020705,2]
[386618075,1758433851117,-500.01,0.00020705,2]
[386618076,1758433851126,-329.53702061,0.00020709,2]
[386618077,1758433851136,-480.0,0.00020709,2]
[386618078,1758433851146,-1273.1376507,0.00020711,2]
[386618079,1758433851155,-1200.0,0.00020712,2]
[386618080,1758433851165,-480.0,0.00020715,2]
[386618081,1758433851174,-480.0,0.00020715,2]
[386618082,1758433851184,-1388.57,0.00020728,2]
[386618083,1758433851193,-480.0,0.00020728,2]
[386618084,1758433851203,-584.44,0.00020739,2]
[386618085,1758433851213,-2961.42,0.00020739,2]
[386618086,1758433851222,-480.0,0.00020739,2]
[386618087,1758433851232,-480.0,0.00020739,2]
[386618088,1758433851241,-500.0,0.00020836,2]
[386618089,1758433851250,-500.0,0.00020836,2]
[386618090,1758433851259,-500.0,0.00020836,2]
[386618091,1758433851268,-500.0,0.00020836,2]
[386618092,1758433851278,-500.0,0.00020836,2]
[386618093,1758433851288,-500.0,0.00020836,2]
[386618094,1758433851298,-504.70905038,0.00020836,2]
[386618095,1758433851307,-472.75108616,0.00020836,2]
[386618096,1758433851317,-500.85707087,0.00020836,2]
[386618097,1758433851326,-500.0,0.00020836,2]
[386618098,1758433851337,-174.23597462,0.00020836,2]
[386618099,1758433851346,-1460.43919616,0.00020875,2]
[386618100,1758433851357,-1643.91202023,0.00020968,2]
[386618101,1758433851366,-1500.0,0.00020968,2]
[386618102,1758433851376,-11979.14084837,0.00020972,2]
[386618103,1758433851389,-480.0,0.00020974,2]
[386618104,1758433851399,-513.48,0.00020974,2]
[386618105,1758433851409,-688.83,0.00020974,2]
[386618106,1758433851418,-480.0,0.00020975,2]
[386618107,1758433851428,-571.74,0.00020975,2]
[386618108,1758433851438,-528.0,0.00020975,2]
[386618109,1758433851451,-480.0,0.00020975,2]
[386618110,1758433851460,-480.0,0.00020975,2]
[386618111,1758433851469,-480.0,0.00020975,2]
[386618112,1758433851479,-278.4971311,0.00020975,2]
[386618113,1758433851488,-480.0,0.00020975,2]
[386618114,1758433851497,-939.79,0.00020977,2]
[386618115,1758433851506,-480.0,0.00020979,2]
[386618116,1758433851515,-480.0,0.00020979,2]
[386618117,1758433851525,-954.7,0.00020979,2]
[386618118,1758433851534,-480.0,0.00020979,2]
[386618119,1758433851544,-480.0,0.00020979,2]
[386618120,1758433851553,-480.0,0.00020979,2]
[386618121,1758433851562,-480.0,0.00020979,2]
[386618122,1758433851572,-829.79,0.00020979,2]
[386618123,1758433851581,-500.01,0.00020979,2]
[386618124,1758433851591,-480.0,0.00020983,2]
[386618125,1758433851600,-30.96784662,0.00020983,2]
[386618126,1758433851718,-480.0,0.00019883,2]
[386618127,1758433851728,-381.11546852,0.00020983,2]
[386618128,1758433858523,-829.3055119,0.00019203,2]
[386618129,1758433863823,300.0,0.00019506,2]
[386618130,1758433872984,164.46385252,0.00018922,2]
[386618139,1758433887920,1976.24,0.00019438,2]
[386618140,1758433904514,482.35743363,0.00019506,2]
[386618141,1758433910479,481.45640124,0.00019506,2]
[386618142,1758433922434,300.0,0.00019506,2]
[386618143,1758433931111,763.76,0.00019497,3]
[386618144,1758433945760,407.08292214,0.00019506,2]
[386618145,1758433947588,483.43339288,0.00019506,2]
[386618146,1758433952244,255.2998581,0.00019506,2]
[386618147,1758433953119,500.0,0.00019506,2]
[386618148,1758433953152,273.74656767,0.00019506,2]
[386618149,1758433953183,354.67690512,0.00019506,2]
[386618150,1758433953224,350.74680032,0.00019506,2]
[386618151,1758433953251,250.0,0.00019506,2]
[386618152,1758433953288,628.15565916,0.00019506,2]
[386618153,1758433953335,369.97918342,0.00019506,2]
[386618154,1758433953361,130.02081658,0.00019506,2]
[386618155,1758433971577,1969.33,0.00019451,2]
[386618166,1758434198983,-1944.27,0.00019421,2]
[386618167,1758434199012,-1190.23221766,0.00019473,2]
[386618168,1758434199040,-184.1830755,0.00019503,2]
[386618169,1758434199068,-297.91677141,0.00019503,2]
[386618170,1758434199096,-1200.0,0.00019505,2]
[386618171,1758434199125,-66.80587086,0.00019505,2]
[386618172,1758434199308,-233.19412914,0.00019505,2]
[386618173,1758434199337,-480.0,0.00019506,2]
[386618174,1758434199366,-480.0,0.00019506,2]
[386618175,1758434199393,-481.95676386,0.00019506,2]
[386618176,1758434199422,-248.69783687,0.00019506,2]
[386618177,1758434199452,-481.05418233,0.00019506,2]
[386618178,1758434199480,-481.63245991,0.00019506,2]
[386618179,1758434199506,-483.79868591,0.00019506,2]
[386618180,1758434199535,-516.62,0.00019506,2]
[386618181,1758434199564,-480.0,0.00019506,2]
[386618182,1758434199593,-480.0,0.00019506,2]
[386618183,1758434199661,-509.43249817,0.00019506,2]
[386618184,1758434199688,-491.30984336,0.00019506,2]
[386618185,1758434199719,-1128.76070458,0.00019506,2]
[386618186,1758434199838,-4259.00609222,0.00019506,2]
[386618187,1758434199955,-1481.99781556,0.00019506,2]
[386618188,1758434207115,480.0,0.00019506,2]
[386618189,1758434215363,1919.52,0.0001942,2]
[386618190,1758434216558,480.0,0.00019506,2]
[386618191,1758434222386,480.0,0.00019506,2]
[386618192,1758434226807,300.0,0.00019506,2]
[386618193,1758434237015,311.16079565,0.00019506,2]
[386618194,1758434312140,-238.06291388,0.00018586,2]
[386618195,1758434315787,-209.20590083,0.00018586,2]
[386618197,1758434318984,-526.53578144,0.00018586,2]
[386618198,1758434321948,-168.0,0.00018586,2]
[386618199,1758434324396,-212.80545591,0.00018586,2]
[386618200,1758434326867,-191.01867633,0.00018586,2]
[386618201,1758434328249,-152.0,0.00018586,2]
[386618202,1758434329735,-168.15353302,0.00018586,2]
[386618203,1758434332797,-168.42349795,0.00018586,2]
[386618204,1758434334717,-169.45878191,0.00018586,2]
[386618205,1758434336633,-300.0,0.00018586,2]
[386618206,1758434396516,-10.95272683,0.00018586,2]
[386618207,1758434396545,-500.0,0.000186,2]
[386618208,1758434396576,-1895.09,0.00019415,2]
[386618209,1758434396607,-480.0,0.00019506,2]
[386618210,1758434396637,-300.31796538,0.00019506,2]
[386618211,1758434396666,-480.0,0.00019506,2]
[386618212,1758434396696,-480.0,0.00019506,2]
[386618213,1758434396725,-480.0,0.00019506,2]
[386618214,1758434409375,-500.0,0.00018586,2]
[386618215,1758434409406,-500.0,0.00018586,2]
[386618216,1758434409435,-500.0,0.00018586,2]
[386618217,1758434409466,-500.0,0.00018586,2]
[386618218,1758434409496,-500.0,0.00018586,2]
[386618219,1758434409525,-500.0,0.00018586,2]
[386618220,1758434409558,-500.0,0.00018586,2]
[386618221,1758434409593,-500.0,0.00018586,2]
[386618222,1758434409623,-300.0,0.00019505,2]
[386618223,1758434409656,-649.11,0.00019506,2]
[386618229,1758434494818,-4759.0702815,0.00018744,2]
[386618230,1758434495068,-481.869437,0.00018744,2]
[386618231,1758434495104,-1041.45319047,0.00019473,2]
[386618232,1758434495139,-300.0,0.00019505,2]
[386618233,1758434495173,-101.79,0.00019506,2]
[386618234,1758434495204,-495.1,0.00019506,2]
[386618235,1758434495234,-462.25784702,0.00019506,2]
[386618236,1758434495263,-488.43557309,0.00019506,2]
[386618237,1758434495293,-480.0,0.00019506,2]
[386618238,1758434495436,-480.0,0.00019506,2]
[386618239,1758434495470,-480.0,0.00019506,2]
[386618240,1758434495572,-480.0,0.00019506,2]
[386618241,1758434495604,-480.0,0.00019506,2]
[386618242,1758434495635,-617.56203235,0.00019506,2]
[386618243,1758434495667,-480.0,0.00019506,2]
[386618244,1758434495698,-480.0,0.00019506,2]
[386618245,1758434495732,-480.0,0.00019506,2]
[386618246,1758434495761,-480.0,0.00019506,2]
[386618247,1758434495791,-480.0,0.00019506,2]
[386618248,1758434495823,-480.0,0.00019506,2]
[386618249,1758434495856,-480.0,0.00019506,2]
[386618250,1758434495982,-480.0,0.00019506,2]
[386618251,1758434496014,-734.68,0.00019506,2]
[386618252,1758434501688,481.96123196,0.00019506,2]
[386618253,1758434501742,480.0,0.00019506,2]
[386618254,1758434503680,481.51151314,0.00019506,2]
[386618255,1758434506819,480.0,0.00019506,2]
[386618256,1758434513653,480.0,0.00019506,2]
[386618257,1758434515910,480.0,0.00019506,2]
[386618258,1758434522822,300.0,0.00019506,2]
[386618259,1758434525366,1870.98,0.00019412,2]
[386618260,1758434526997,481.29635531,0.00019506,2]
[386618262,1758434629710,-581.945675,0.00018588,2]
[386618263,1758434629739,-193.598841,0.00018604,2]
[386618264,1758434629769,-1847.16,0.00019411,2]
[386618265,1758434629800,-300.0,0.00019505,2]
[386618266,1758434629831,-528.51,0.00019506,2]
[386618267,1758434629861,-480.0,0.00019506,2]
[386618268,1758434629892,-480.0,0.00019506,2]
[386618269,1758434629922,-480.0,0.00019506,2]
[386618270,1758434639590,-3306.5358913,0.00019132,2]
[386618271,1758434639619,-480.0,0.00019506,2]
[386618272,1758434639650,-480.0,0.00019506,2]
[386618273,1758434639681,-480.0,0.00019506,2]
[386618274,1758434639715,-26.9382174,0.00019506,2]
[386618276,1758434669840,-417.15472785,0.00019132,2]
[386618277,1758434669870,-174.02350186,0.00019503,2]
[386618278,1758434669899,-300.0,0.00019505,2]
[386618279,1758434669930,-453.0617826,0.00019506,2]
[386618280,1758434669961,-839.95,0.00019506,2]
[386618281,1758434669992,-480.0,0.00019506,2]
[386618282,1758434670021,-483.25938974,0.00019506,2]
[386618283,1758434670051,-480.0,0.00019506,2]
[386618284,1758434670080,-482.0469401,0.00019506,2]
[386618285,1758434670109,-480.0,0.00019506,2]
[386618286,1758434670141,-341.0173157,0.00019506,2]
[386618287,1758434679685,-500.0,0.00019505,2]
[386618288,1758434679717,-500.0,0.00019505,2]
[386618289,1758434679749,-500.0,0.00019505,2]
[386618290,1758434679781,-500.0,0.00019505,2]
[386618291,1758434679813,-500.0,0.00019505,2]
[386618292,1758434679845,-500.0,0.00019505,2]
[386618293,1758434679878,-500.0,0.00019505,2]
[386618294,1758434679912,-500.0,0.00019505,2]
[386618295,1758434679945,-500.0,0.00019505,2]
[386618296,1758434679976,-500.0,0.00019505,2]
[386618297,1758434680096,-500.0,0.00019505,2]
[386618298,1758434680128,-191.69550491,0.00019505,2]
[386618299,1758434680160,-500.0,0.00019505,2]
[386618300,1758434680194,-500.0,0.00019505,2]
[386618301,1758434680226,-500.0,0.00019505,2]
[386618302,1758434680258,-500.0,0.00019505,2]
[386618303,1758434680289,-500.0,0.00019505,2]
[386618304,1758434680320,-500.0,0.00019505,2]
[386618305,1758434680351,-500.0,0.00019505,2]
[386618306,1758434680385,-500.0,0.00019505,2]
[386618307,1758434680416,-116.61899018,0.00019505,2]
[386618308,1758434688037,-383.38100982,0.00019505,2]
[386618309,1758434688074,-500.0,0.00019505,2]
[386618310,1758434688108,-500.0,0.00019505,2]
[386618311,1758434688141,-500.0,0.00019505,2]
[386618313,1758434688178,-500.0,0.00019505,2]
[386618314,1758434688220,-500.0,0.00019505,2]
[386618315,1758434688252,-500.0,0.00019505,2]
[386618316,1758434688285,-500.0,0.00019505,2]
[386618317,1758434688423,-273.57876977,0.00019505,2]
[386618318,1758434688457,-500.0,0.00019505,2]
[386618319,1758434688489,-186.09044082,0.00019505,2]
[386618320,1758434694698,-1893.41,0.00019411,2]
[386618321,1758434694734,-313.90955918,0.00019505,2]
[386618322,1758434694764,-500.0,0.00019505,2]
[386618323,1758434694797,-500.0,0.00019505,2]
[386618324,1758434694827,-500.0,0.00019505,2]
[386618325,1758434694858,-500.0,0.00019505,2]
[386618326,1758434694890,-500.0,0.00019505,2]
[386618327,1758434694921,-85.37088164,0.00019505,2]
[386618328,1758434695025,-414.62911836,0.00019505,2]
[386618329,1758434695056,-500.0,0.00019505,2]
[386618330,1758434695087,-500.0,0.00019505,2]
[386618331,1758434695117,-500.0,0.00019505,2]
[386618332,1758434695148,-500.0,0.00019505,2]
[386618333,1758434695181,-500.0,0.00019505,2]
[386618334,1758434695212,-500.0,0.00019505,2]
[386618335,1758434695243,-273.57876977,0.00019505,2]
[386618336,1758434695273,-138.9826843,0.00019506,2]
[386618337,1758434695302,-480.0,0.00019506,2]
[386618338,1758434695333,-480.0,0.00019506,2]
[386618339,1758434695446,-480.0,0.00019506,2]
[386618340,1758434695475,-480.0,0.00019506,2]
[386618341,1758434695505,-483.44452902,0.00019506,2]
[386618342,1758434695534,-486.13030995,0.00019506,2]
[386618343,1758434695564,-552.2,0.00019506,2]
[386618344,1758434695593,-480.0,0.00019506,2]
[386618345,1758434695624,-480.0,0.00019506,2]
[386618346,1758434695654,-480.0,0.00019506,2]
[386618347,1758434695684,-480.0,0.00019506,2]
[386618348,1758434695713,-480.0,0.00019506,2]
[386618349,1758434695866,-480.0,0.00019506,2]
[386618350,1758434695895,-452.19,0.00019506,2]
[386618351,1758434695925,-480.0,0.00019506,2]
[386618352,1758434695954,-480.0,0.00019506,2]
[386618353,1758434695983,-480.0,0.00019506,2]
[386618354,1758434696013,-480.0,0.00019506,2]
[386618355,1758434696045,-480.0,0.00019506,2]
[386618356,1758434696074,-480.0,0.00019506,2]
[386618357,1758434696105,-480.0,0.00019506,2]
[386618358,1758434696136,-348.41998357,0.00019506,2]
[386618359,1758434697107,-2807.6461164,0.00019506,2]
[386618360,1758434697123,-10000.01,0.00019506,2]
[386618363,1758434704736,-480.0,0.00019506,2]
[386618364,1758434704779,-9040.01,0.00019506,2]
[386618365,1758434704850,-10000.01,0.00019506,2]
[386618366,1758434704977,-10000.01,0.00019506,2]
[386618368,1758434714762,-194.42371395,0.00019406,2]
[386618369,1758434714799,-500.0,0.00019505,2]
[386618370,1758434714836,-482.07941926,0.00019505,2]
[386618371,1758434714868,-480.0,0.00019506,2]
[386618372,1758434714903,-480.0,0.00019506,2]
[386618373,1758434714937,-480.0,0.00019506,2]
[386618374,1758434714969,-481.29761547,0.00019506,2]
[386618375,1758434715000,-480.0,0.00019506,2]
[386618376,1758434715169,-804.0,0.00019505,2]
[386618377,1758434715180,-2040.40850264,0.00019506,2]
[386618378,1758434732590,-500.0,0.00019505,2]
[386618379,1758434732625,-500.0,0.00019505,2]
[386618380,1758434732660,-500.0,0.00019505,2]
[386618381,1758434732692,-500.0,0.00019505,2]
[386618382,1758434732725,-500.0,0.00019505,2]
[386618383,1758434732757,-500.0,0.00019505,2]
[386618384,1758434732790,-513.90051018,0.00019505,2]
[386618385,1758434732819,-500.0,0.00019505,2]
[386618386,1758434732848,-500.0,0.00019505,2]
[386618387,1758434732879,-472.20897964,0.00019505,2]
[386618388,1758434732979,-27.79102036,0.00019505,2]
[386618389,1758434733009,-600.0,0.00019505,2]
[386618390,1758434733038,-500.0,0.00019505,2]
[386618391,1758434733067,-500.0,0.00019505,2]
[386618392,1758434733097,-500.0,0.00019505,2]
[386618393,1758434733126,-500.0,0.00019505,2]
[386618394,1758434733157,-500.0,0.00019505,2]
[386618395,1758434733189,-500.0,0.00019505,2]
[386618396,1758434733219,-500.0,0.00019505,2]
[386618397,1758434733250,-500.0,0.00019505,2]
[386618398,1758434733281,-289.4109132,0.00019505,2]
[386618399,1758434733564,-165.60613288,0.00019505,2]
[386618400,1758434733573,-27.79102036,0.00019505,2]
[386618401,1758434739845,-472.20897964,0.00019505,2]
[386618402,1758434739879,-500.0,0.00019505,2]
[386618403,1758434739910,-500.0,0.00019505,2]
[386618404,1758434739943,-500.0,0.00019505,2]
[386618405,1758434739978,-500.0,0.00019505,2]
[386618406,1758434740010,-500.0,0.00019505,2]
[386618407,1758434740040,-500.0,0.00019505,2]
[386618408,1758434740071,-500.0,0.00019505,2]
[386618409,1758434740217,-275.40839861,0.00019505,2]
[386618410,1758434740254,-500.0,0.00019505,2]
[386618411,1758434740344,-536.13880976,0.00019505,2]
[386618412,1758434740376,-500.0,0.00019505,2]
[386618413,1758434740409,-500.0,0.00019505,2]
[386618414,1758434740442,-500.0,0.00019505,2]
[386618415,1758434740473,-500.0,0.00019505,2]
[386618416,1758434740505,-450.81154864,0.00019505,2]
[386618417,1758434740537,-500.0,0.00019505,2]
[386618418,1758434740570,-500.0,0.00019505,2]
[386618419,1758434740602,-500.0,0.00019505,2]
[386618420,1758434740635,-500.0,0.00019505,2]
[386618421,1758434740937,-85.32726112,0.00019505,2]
[386618422,1758434740952,-414.67273888,0.00019505,2]
[386618423,1758434740961,-85.32726112,0.00019505,2]
[386618424,1758434740980,-26.1092832,0.00019505,2]
[386618426,1758434743429,-388.56345568,0.00019505,2]
[386618427,1758434743463,-500.0,0.00019505,2]
[386618428,1758434743497,-500.0,0.00019505,2]
[386618429,1758434743532,-500.0,0.00019505,2]
[386618430,1758434743566,-500.0,0.00019505,2]
[386618431,1758434743601,-500.0,0.00019505,2]
[386618432,1758434743636,-500.0,0.00019505,2]
[386618433,1758434743675,-500.0,0.00019505,2]
[386618434,1758434743708,-500.0,0.00019505,2]
[386618435,1758434743738,-500.0,0.00019505,2]
[386618436,1758434743953,-222.88308864,0.00019505,2]
[386618437,1758434792002,159.0,0.000273,120]
[386618438,1758434793174,159.0,0.000273,120]
[386618440,1758434802826,159.0,0.000273,120]
[386618441,1758434819273,159.0,0.00018,2]
[386618442,1758434834441,160.31759593,0.00018,2]
[386618451,1758434951437,500.0,0.00018,2]
[386618453,1758434952801,-158.75483922,0.00018493,2]
[386618454,1758434954374,-203.06865084,0.00018493,2]
[386618455,1758434958240,-152.22659262,0.00018493,2]
[386618456,1758434959710,-175.973593,0.00018493,2]
[386618457,1758434961233,-222.55510571,0.00018493,2]
[386618458,1758434964466,-87.42121861,0.00018493,2]
[386618461,1758435026778,-224.48222549,0.000185,2]
[386618462,1758435026805,-4.89757521,0.00018501,2]
[386618463,1758435029959,-201.76984897,0.00018501,2]
[386618473,1758435032366,-165.82,0.00018501,2]
[386618520,1758435032754,-47.95278602,0.00018501,2]
[386618523,1758435032763,-171.68809144,0.00019397,2]
[386618526,1758435032772,-293.20767396,0.00019406,2]
[386618529,1758435032781,-429.03411591,0.00019497,3]
[386618534,1758435032797,-388.48588409,0.00019497,3]
[386618537,1758435032806,-500.0,0.000195,2]
[386618540,1758435032816,-1200.0,0.00019501,2]
[386618543,1758435032826,-195.0,0.00019502,2]
[386618546,1758435032836,-169.20988394,0.00019502,2]
[386618550,1758435032851,-130.79011606,0.00019502,2]
[386618553,1758435032860,-137.35492459,0.00019502,2]
[386618597,1758435038597,-162.64507541,0.00019502,2]
[386618598,1758435038607,-300.0,0.00019502,2]
[386618599,1758435038617,-300.0,0.00019502,2]
[386618600,1758435038626,-577.04427405,0.00019502,2]
[386618601,1758435038635,-298.31566205,0.00019502,2]
[386618602,1758435038644,-1200.0,0.00019503,2]
[386618603,1758435038654,-307.06537463,0.00019503,2]
[386618604,1758435038664,-480.0,0.00019503,2]
[386618605,1758435038673,-484.23712621,0.00019503,2]
[386618606,1758435038682,-480.0,0.00019503,2]
[386618607,1758435038692,-482.36554867,0.00019503,2]
[386618608,1758435038701,-500.0,0.00019503,2]
[386618609,1758435038711,-484.21789745,0.00019503,2]
[386618610,1758435038721,-1037.33082175,0.00019504,2]
[386618611,1758435038732,-15984.23314783,0.00019504,2]
[386618612,1758435038742,-59.14144245,0.00019505,2]
[386618613,1758435038754,-420.85855755,0.00019505,2]
[386618614,1758435038763,-480.0,0.00019505,2]
[386618615,1758435038773,-480.0,0.00019505,2]
[386618616,1758435038783,-480.0,0.00019505,2]
[386618617,1758435038792,-539.05,0.00019505,2]
[386618618,1758435038801,-369.38944306,0.00019506,2]
[386618619,1758435038813,-106.49080352,0.00019506,2]
[386618620,1758435038823,-483.76567979,0.00019506,2]
[386618621,1758435038832,-480.0,0.00019506,2]
[386618622,1758435038842,-480.0,0.00019506,2]
[386618623,1758435038851,-119.43520026,0.00019506,2]
[386618624,1758435038865,-360.56479974,0.00019506,2]
[386618625,1758435038875,-470.52748667,0.00019506,2]
[386618626,1758435038887,-9.47251333,0.00019506,2]
[386618627,1758435038896,-480.0,0.00019506,2]
[386618628,1758435038905,-480.0,0.00019506,2]
[386618629,1758435038915,-151.65273098,0.00019506,2]
[386618630,1758435038926,-328.34726902,0.00019506,2]
[386618631,1758435038936,-480.0,0.00019506,2]
[386618632,1758435038945,-480.0,0.00019506,2]
[386618633,1758435038955,-480.0,0.00019506,2]
[386618634,1758435038965,-480.0,0.00019506,2]
[386618635,1758435038974,-480.0,0.00019506,2]
[386618636,1758435038984,-480.0,0.00019506,2]
[386618637,1758435038993,-480.0,0.00019506,2]
[386618638,1758435039003,-484.25333663,0.00019506,2]
[386618639,1758435039012,-480.0,0.00019506,2]
[386618640,1758435039022,-480.0,0.00019506,2]
[386618641,1758435039031,-480.0,0.00019506,2]
[386618642,1758435039040,-480.0,0.00019506,2]
[386618643,1758435039050,-480.0,0.00019506,2]
[386618644,1758435039060,-480.0,0.00019506,2]
[386618645,1758435039069,-438.4639532,0.00019506,2]
[386618646,1758435039079,-480.0,0.00019506,2]
[386618647,1758435039088,-480.0,0.00019506,2]
[386618648,1758435039098,-480.0,0.00019506,2]
[386618649,1758435039108,-480.0,0.00019506,2]
[386618650,1758435039118,-317.87000932,0.00019506,2]
[386618651,1758435039127,-216.23296999,0.00019506,2]
[386618652,1758435039137,-480.0,0.00019506,2]
[386618653,1758435039147,-480.0,0.00019506,2]
[386618654,1758435039156,-480.0,0.00019506,2]
[386618655,1758435039166,-480.0,0.00019506,2]
[386618656,1758435039176,-480.0,0.00019506,2]
[386618657,1758435039185,-480.0,0.00019506,2]
[386618658,1758435039195,-480.0,0.00019506,2]
[386618659,1758435039204,-480.0,0.00019506,2]
[386618660,1758435039214,-480.0,0.00019506,2]
[386618661,1758435039224,-480.0,0.00019506,2]
[386618662,1758435039233,-480.0,0.00019506,2]
[386618663,1758435039242,-886.76,0.00019506,2]
[386618664,1758435039251,-480.0,0.00019506,2]
[386618665,1758435039260,-480.0,0.00019506,2]
[386618666,1758435039270,-480.0,0.00019506,2]
[386618667,1758435039279,-480.0,0.00019506,2]
[386618668,1758435039288,-443.3184,0.00019506,2]
[386618669,1758435039297,-480.0,0.00019506,2]
[386618670,1758435039307,-803.98,0.00019506,2]
[386618671,1758435039316,-480.0,0.00019506,2]
[386618672,1758435039325,-480.0,0.00019506,2]
[386618673,1758435039335,-484.79139641,0.00019506,2]
[386618674,1758435039345,-522.07,0.00019506,2]
[386618675,1758435039354,-480.0,0.00019506,2]
[386618676,1758435039364,-480.0,0.00019506,2]
[386618677,1758435039374,-480.0,0.00019506,2]
[386618678,1758435039387,-480.0,0.00019506,2]
[386618679,1758435039396,-480.0,0.00019506,2]
[386618680,1758435039406,-167.64482548,0.00019506,2]
[386618721,1758435040919,-140.80799325,0.00019502,2]
[386619049,1758435046067,-4320.91950897,0.00019473,2]
[386619065,1758435057049,-183.70021016,0.00019402,2]
[386619066,1758435057074,-257.08186555,0.00019403,2]
[386619073,1758435122307,-165.93369979,0.00018495,2]
[386619074,1758435125749,-115.16097411,0.00018495,2]
[386619075,1758435140849,-302.78807257,0.000189,2]
[386619076,1758435140879,-588.52230847,0.00018917,2]
[386619077,1758435140911,-160.0,0.00019403,2]
[386619078,1758435140940,-980.74214345,0.00019403,2]
[386619079,1758435141089,-5133.11687845,0.00019406,2]
[386619080,1758435141207,-10000.01,0.00019406,2]
[386619081,1758435141222,-10000.01,0.00019406,2]
[386619082,1758435158683,-168.531062,0.00018501,2]
[386619083,1758435160793,-154.13088673,0.00018501,2]
[386619084,1758435160835,-1003.24919347,0.00018501,2]
[386619085,1758435160878,-7993.51161306,0.00019406,2]
[386619086,1758435161071,-734.86765136,0.00019406,2]
[386619087,1758435161101,-500.0,0.00019472,2]
[386619088,1758435161129,-500.0,0.00019472,2]
[386619089,1758435161159,-500.0,0.00019472,2]
[386619090,1758435161188,-247.87638139,0.00019472,2]
[386619091,1758435161218,-500.0,0.00019472,2]
[386619092,1758435161251,-500.0,0.00019472,2]
[386619093,1758435161282,-230.77313368,0.00019472,2]
[386619094,1758435161314,-500.0,0.00019472,2]
[386619095,1758435161343,-500.0,0.00019472,2]
[386619096,1758435161372,-72.97566714,0.00019472,2]
[386619097,1758435161568,-427.02433286,0.00019472,2]
[386619098,1758435161600,-500.0,0.00019472,2]
[386619099,1758435161632,-500.0,0.00019472,2]
[386619100,1758435161662,-500.0,0.00019472,2]
[386619101,1758435161691,-391.60456386,0.00019472,2]
[386619102,1758435161720,-204.23869203,0.00019472,2]
[386619103,1758435161762,-500.0,0.00019472,2]
[386619104,1758435161794,-500.0,0.00019472,2]
[386619105,1758435161827,-500.0,0.00019472,2]
[386619106,1758435161861,-500.0,0.00019472,2]
[386619107,1758435161892,-454.2748225,0.00019472,2]
[386619108,1758435162017,-45.7251775,0.00019472,2]
[386619109,1758435162049,-500.0,0.00019472,2]
[386619110,1758435162080,-500.0,0.00019472,2]
[386619111,1758435162109,-505.57102884,0.00019472,2]
[386619112,1758435162142,-500.0,0.00019472,2]
[386619113,1758435162176,-500.0,0.00019472,2]